Cogmind - Beta 14 @@@ ROGUE MODE // 2024.11.02 @ 15:54:08 Player: Darsidian Result: Destroyed by G-73 Enforcer with Phase Gun Performance ------------- Evolutions (7) 3500 Regions Visited (19) 3800 Robots Destroyed (172) 860 Value Destroyed (9267) 9267 Prototype IDs (32) 640 Alien Tech Used (0) 0 Bonus (6583) 6583 TOTAL SCORE: 24650 Bonus ------- High Alert Combat Kills 946 Follower Combat Kills 2836 Entered Garrisons 600 Used RIF Installer 2000 Entered DSFs 500 Aligned with FarCom 300 Friendly Fire -599 Cogmind --------- Core Integrity 0/1300 Matter 290/300 Energy 117/150 System Corruption 14% Temperature Cool (0) Movement Core (150) Ox2 Location -3/Research Parts ------- > --- POWER (2) -------- Micro Antimatter Reactor > --- PROPULSION (6) --- (None) > --- UTILITY (9) ------ (None) > --- WEAPON (4) ------- (None) > --- INVENTORY (5) ---- Micro Fission Core Heavy Siege Treads Advanced Reaction Control System Graphene Brace Peak State ------------ > --- POWER ------------ Light Antimatter Reactor Micro Antimatter Reactor > --- PROPULSION ------- Gravmag Array Gravmag Array Improved Antigrav System > --- UTILITY ---------- Advanced Heat Sink Large Storage Unit Advanced Targeting Computer Transmission Jammer Centrium Light Armor Plating Relay Coupler [NC] Relay Coupler [Grunt] Relay Coupler [Specialist] Relay Coupler [Hunter] > --- WEAPON ----------- Matter Neutralizer Railgun Railgun Advanced Remote Datajack > --- INVENTORY -------- Micro Fission Core Light Antimatter Reactor Heavy Siege Treads Compact Battery ECM Suite Advanced Reaction Control System Graphene Brace Improved Force Field Hacking Suite Relay Coupler [NC] Relay Coupler [Hunter] Matter Neutralizer Fusion Bomb Launcher Heavy Pick [Rating: 115] Favorites ----------- Power Improved Deuterium Engine Engine Improved Deuterium Engine Power Core Micro Fission Core Reactor Light Antimatter Reactor Propulsion Gravmag Array Treads Improved Heavy Treads Leg Armored Leg Wheel Armored Huge Wheel Hover Unit Gravmag Array Flight Unit VTOL Module Utility Large Storage Unit Device Cryofiber Web Storage Large Storage Unit Processor Advanced Targeting Computer Hackware Relay Coupler [Grunt] Protection Centrium Light Armor Plating Weapon Matter Neutralizer Energy Gun Gatling Laser Energy Cannon Matter Neutralizer Ballistic Gun KE Penetrator Ballistic Cannon Bore Cannon Launcher Missile Launcher Special Weapon Remote Datajack Impact Weapon Hammer Slashing Weapon Ripper Piercing Weapon Spear Special Melee Weapon Improved Datajack Build | -11 -10 -10 -10 -9 -8 -7 -7 -6 -6 -6 -6 -5 -5 -5 -4 -4 -4 -4 -3 ------- Run | Yrd Mat Min Exi Min Mat Fac Gar Fac Low Low Zio Pro Fac Gar Fac Gar Fac DSF Res Slots Evolved 14 | . . . . . 4 2 . 2 . . . . 2 . 2 . . . 2 Power 1 | . . . . . . 1 . . . . . . . . . . . . . Propulsion 4 | . . . . . 1 1 . . . . . . . . . . . . 2 Utility 7 | . . . . . 3 . . 1 . . . . 1 . 2 . . . . Weapon 2 | . . . . . . . . 1 . . . . 1 . . . . . . Parts Attached 427 | 7 12 . . 14 31 54 34 38 7 19 . 16 9 55 14 71 . 15 31 Power 57 | 1 1 . . 1 2 9 3 6 . 2 . 3 1 8 1 13 . . 6 Engine 24 | 1 1 . . 1 1 6 . 5 . . . 2 . 3 . 4 . . . Core 17 | . . . . . 1 3 3 1 . 2 . 1 1 2 . 2 . . 1 Reactor 16 | . . . . . . . . . . . . . . 3 1 7 . . 5 Propulsion 60 | 3 4 . . 6 7 7 4 9 . 1 . 4 2 4 2 5 . . 2 Treads 3 | . . . . . . . 2 . . . . . . 1 . . . . . Leg 37 | 2 2 . . 4 7 5 2 9 . 1 . 4 . 1 . . . . . Wheel 4 | 1 . . . . . 2 . . . . . . . . . 1 . . . Hover 15 | . 2 . . 2 . . . . . . . . 2 2 2 3 . . 2 Flight 1 | . . . . . . . . . . . . . . . . 1 . . . Utility 113 | 1 4 . . . 13 12 8 7 3 7 . 2 3 10 6 24 . 6 7 Device 59 | . 1 . . . 7 9 5 4 2 3 . . 1 4 4 12 . 1 6 Storage 8 | 1 2 . . . 1 1 . 1 . . . 1 . . . . . 1 . Processor 11 | . 1 . . . 2 1 . 2 1 1 . . . 1 . 1 . . 1 Hackware 26 | . . . . . . . 1 . . 2 . . 2 5 2 10 . 4 . Protection 9 | . . . . . 3 1 2 . . 1 . 1 . . . 1 . . . Artifact . | . . . . . . . . . . . . . . . . . . . . Weapon 197 | 2 3 . . 7 9 26 19 16 4 9 . 7 3 33 5 29 . 9 16 Energy Gun 52 | 1 . . . 4 6 12 7 5 . 4 . 5 . 5 1 1 . . 1 Energy Cannon 34 | . . . . . . 6 2 4 2 1 . 2 . 9 . 5 . 2 1 Ballistic Gun 31 | 1 2 . . . 1 . 1 3 1 1 . . 1 5 2 6 . 3 4 Ballistic Cannon 3 | . . . . 1 . . . 2 . . . . . . . . . . . Launcher 8 | . . . . . 2 2 . . . . . . . . . 3 . . 1 Special Weapon 26 | . . . . . . . . . 1 3 . . 1 6 2 6 . 2 5 Impact Weapon 2 | . 1 . . 1 . . . . . . . . . . . . . . . Slashing Weapon 30 | . . . . 1 . 4 6 1 . . . . 1 8 . 8 . 1 . Piercing Weapon 5 | . . . . . . . . . . . . . . . . . . 1 4 Special Melee Weapon 6 | . . . . . . 2 3 1 . . . . . . . . . . . Unidentified Prototypes 7 | . . . . . . 1 1 1 . . . . . . . 1 . . 3 Corrupted Parts 1 | . . . . . . . 1 . . . . . . . . . . . . System Corruption 10 | . . . . . . . 10 . . . . . . . . . . . . Parts Lost 40 | . . . . 1 3 11 5 1 1 1 . 7 . 2 . 2 . 3 3 Power 10 | . . . . . 1 3 2 . . 1 . 2 . . . 1 . . . Propulsion 8 | . . . . 1 1 3 . . . . . 2 . . . . . . 1 Utility 15 | . . . . . . 2 2 1 1 . . 2 . 2 . 1 . 3 1 Weapon 7 | . . . . . 1 3 1 . . . . 1 . . . . . . 1 Highest Loss Streak 5 | . . . . 1 2 5 2 1 1 1 . 3 . 1 . 1 . 1 3 To Critical Strikes . | . . . . . . . . . . . . . . . . . . . . Average Slot Usage (%) 89 | . 98 100 100 95 94 92 84 91 99 99 100 91 87 83 83 87 89 84 79 Engine 6 | . 14 14 14 14 6 9 7 9 13 8 . 2 5 7 9 1 . . . Core 3 | . . . . . 1 2 5 3 . 4 13 9 5 2 . 4 5 5 3 Reactor 1 | . . . . . . . . . . . . . . 1 . 4 5 5 4 Treads 1 | . . . . . . . 10 7 . . . . . . . . . . . Leg 10 | . 20 . . 14 26 24 5 11 26 26 26 24 1 . . . . . . Hover 6 | . 7 28 28 13 . . . . . . . . 10 10 10 9 10 10 13 Device 16 | . 1 . . . 16 19 16 15 24 25 26 20 20 13 20 21 15 6 6 Storage 6 | . 14 14 14 14 9 7 7 8 6 6 6 7 5 5 5 5 5 5 3 Processor 6 | . 10 14 14 14 10 7 7 11 7 1 . . . 3 5 5 5 5 3 Hackware 5 | . . . . . . . . 3 . . . . 7 12 11 10 15 19 18 Protection 2 | . . . . . 5 1 4 . . 4 6 4 5 . . 2 5 5 3 Energy Gun 7 | . 14 14 14 15 15 10 5 9 13 15 13 17 11 2 . . . . . Energy Cannon 6 | . . . . . . 2 3 5 6 3 6 2 . 13 14 11 . 4 6 Ballistic Gun 1 | . 10 . . . . . 1 1 . . . . 4 . . 2 15 9 4 Special Weapon 1 | . . . . . . . . . . . . . 2 1 3 2 . 4 2 Slashing Weapon 1 | . . . . 1 . 1 3 . . . . . 2 2 . 3 5 . . Peak Build Rating 115 | 6 7 7 8 17 34 46 63 75 70 70 70 70 74 83 91 113 106 106 115 Average Rating 65 | 4 6 7 7 12 28 37 56 68 68 68 69 62 72 77 84 99 106 98 102 On Entrance 52 | . 6 7 7 8 17 28 44 59 65 69 70 70 62 74 76 88 106 106 94 Naked Turns 13 | . . . . . . . . . . . . . . . . . . . 13 Heaviest Build 88 | 14 15 12 12 17 42 53 58 69 67 76 75 75 73 81 82 88 62 86 80 Greatest Support 150 | 20 20 12 12 25 44 57 150 150 68 72 72 72 67 40 40 52 40 40 60 Greatest Overweight (x) 25 | . 1 . . 1 1 3 1 2 . 1 1 2 3 25 2 25 1 2 3 Average Overweight (x) . | . . . . . . . . . . . 1 . . 1 1 1 1 1 . Largest Inventory Capacity 15 | 8 15 8 8 8 15 15 15 15 15 15 15 15 15 15 15 15 15 15 15 Average Capacity 14 | 7 8 8 8 8 14 15 15 15 15 15 15 15 15 15 15 15 15 15 14 Most Carried 15 | 2 8 7 8 8 15 15 15 15 15 15 14 15 15 15 15 15 15 15 15 Average Carried 13 | . 5 6 7 7 12 13 14 14 13 13 13 13 14 14 13 14 15 14 12 Final Capacity 15 | 8 8 8 8 8 15 15 15 15 15 15 15 15 15 15 15 15 15 15 5 Final Carried 15 | 2 6 7 8 8 14 12 15 15 15 14 14 15 14 15 15 15 15 15 5 Class Distribution -------------------- 24% | Scavenger-Mutant 14% | Scavenger-Skirmisher 14% | Scavenger-Tank 11% | Commander-Skirmisher 11% | Mutant 9% | Bothacker-Skirmisher 5% | Bothacker-Tank 3% | Gunner Dominant Class ---------------- Mutant | -10/Materials Scavenger-Mutant | -10/Mines Scavenger-Mutant | -10/Exiles Mutant | -9/Mines Scavenger-Mutant | -8/Materials Scavenger-Mutant | -7/Factory Scavenger-Mutant | -7/Garrison Scavenger-Skirmisher | -6/Factory Gunner | -6/Lower Caves Scavenger-Tank | -6/Lower Caves Scavenger-Tank | -6/Zion Scavenger-Tank | -5/Proximity Caves Scavenger-Tank | -5/Factory Scavenger-Skirmisher | -5/Garrison Commander-Skirmisher | -4/Factory Commander-Skirmisher | -4/Garrison Botlord-Tank | -4/Factory Bothacker-Tank | -4/DSF Bothacker-Skirmisher | -3/Research Resources | -11 -10 -10 -10 -9 -8 -7 -7 -6 -6 -6 -6 -5 -5 -5 -4 -4 -4 -4 -3 ----------- Run | Yrd Mat Min Exi Min Mat Fac Gar Fac Low Low Zio Pro Fac Gar Fac Gar Fac DSF Res Matter Collected 6197 | 297 121 20 . 140 388 482 524 523 72 356 . 235 . 856 285 1047 . 358 493 Remotely . | . . . . . . . . . . . . . . . . . . . . Salvage Created 9130 | 182 207 . . 573 1045 831 959 794 433 738 . 328 . 1258 329 944 . 239 270 Parts 390 | 15 13 . . 24 59 46 42 34 19 21 . 7 . 44 13 37 . 8 8 Haulers Intercepted 4 | . 2 . . . . 1 . . . . . . . . . . . 1 . Recyclers Shooed 5 | . . . . . 2 1 . 1 . . . . . . . . . . 1 Parts Field Recycled . | . . . . . . . . . . . . . . . . . . . . Retrieved Matter . | . . . . . . . . . . . . . . . . . . . . Parts Self-Destructed 58 | . . . . . . . . . 12 21 . 25 . . . . . . . Prevented . | . . . . . . . . . . . . . . . . . . . . Kills | -11 -10 -10 -10 -9 -8 -7 -7 -6 -6 -6 -6 -5 -5 -5 -4 -4 -4 -4 -3 ------- Run | Yrd Mat Min Exi Min Mat Fac Gar Fac Low Low Zio Pro Fac Gar Fac Gar Fac DSF Res Combat Hostiles Destroyed 121 | . 1 . . 5 23 13 13 11 8 14 . 6 . 16 3 5 . 1 2 Melee 7 | . . . . 2 . . 3 . . . . . . . . 2 . . . Guns 66 | . 1 . . 3 16 6 7 9 4 12 . 4 . 1 . 1 . 1 1 Cannons 27 | . . . . . . 2 2 2 3 1 . 1 . 11 3 1 . . 1 AOE 14 | . . . . . 7 5 1 . . . . . . . . 1 . . . Classes Destroyed 19 | 3 4 . . . 4 5 . . 2 . . 1 . . . . . . . Worker 12 | 2 . . . . 2 6 . . . . . . . . 2 . . . . Builder 7 | . 1 . . . 1 4 . 1 . . . . . . . . . . . Tunneler 6 | 4 . . . 2 . . . . . . . . . . . . . . . Hauler 4 | . 2 . . . . 1 . . . . . . . . . . . 1 . Recycler 15 | 1 . . . 4 4 3 . 2 . . . . . . . . . . 1 Operator 1 | . . . . . . 1 . . . . . . . . . . . . . Watcher 8 | . 2 . . . 3 1 1 . . . . . . . 1 . . . . Swarmer 22 | . . . . . 10 4 . 2 . 3 . 2 . . . . . 1 . Grunt 53 | . 1 . . 5 6 . 7 4 5 6 . . . 11 3 4 . . 1 Brawler 4 | . . . . . . . . . 1 2 . 1 . . . . . . . Duelist 7 | . . . . . 1 . 1 1 . 3 . 1 . . . . . . . Sentry 13 | . . . . . 5 1 4 2 . . . 1 . . . . . . . Demolisher 1 | . . . . . . 1 . . . . . . . . . . . . . Specialist 3 | . . . . . . 2 . . . . . . . . . 1 . . . Hunter 7 | . . . . . 1 1 1 . . . . . . 3 1 . . . . Programmer 4 | . . . . . . 1 . 2 . . . . . . . . . . 1 Behemoth 3 | . . . . . . . . . . . . 1 . 2 . . . . . Thief 2 | . . . . . . . . . 2 . . . . . . . . . . Assembled 3 | . . . . . . 3 . . . . . . . . . . . . . Best Kill Streak 10 | 3 6 . . 3 10 7 4 6 3 6 . 3 . 3 3 2 . 2 2 Combat Bots Only 7 | . 1 . . 3 7 5 4 4 3 6 . 3 . 3 2 2 . 1 1 Max Kills in Single Turn 4 | 1 1 . . 1 4 3 1 2 1 1 . 1 . 1 1 1 . 1 1 Gunslinging . | . . . . . . . . . . . . . . . . . . . . Exploded 2 | . . . . . 2 2 1 . . . . . . . . 1 . . . Melee 1 | . . . . 1 . . 1 . . . . . . . . 1 . . . Uniques/NPCs Destroyed . | . . . . . . . . . . . . . . . . . . . . Combat | -11 -10 -10 -10 -9 -8 -7 -7 -6 -6 -6 -6 -5 -5 -5 -4 -4 -4 -4 -3 -------- Run | Yrd Mat Min Exi Min Mat Fac Gar Fac Low Low Zio Pro Fac Gar Fac Gar Fac DSF Res Hostile Shots Fired 836 | . 1 . . 17 82 85 143 46 29 99 . 98 . 58 14 54 . 22 88 Missed 265 | . 1 . . 3 27 32 37 17 12 29 . 26 . 13 10 26 . 10 22 Damage Taken 11024 | 22 . . . 249 916 1464 1567 610 320 904 . 1016 . 703 61 795 . 372 2025 Core 2408 | 11 . . . 50 137 235 134 115 23 86 . 134 . 66 35 73 . . 1309 Absorbed by Shields 767 | . . . . . . 48 44 12 72 260 . 272 . 59 . . . . . Redirected to Shielding 94 | . . . . . . . . . . . . 50 . 44 . . . . . Regen/Repaired (Parts) 148 | . . . . . 57 . . 91 . . . . . . . . . . . Core Remaining (%) 76 | 95 . . . 75 75 . 47 . . . . 57 . 93 . . . 90 . Volleys Fired 507 | 10 6 . . 9 44 40 39 32 15 31 . 19 2 89 34 73 . 33 31 Largest 4 | 2 2 . . 2 2 2 2 3 3 3 . 3 1 4 3 3 . 3 4 Hottest 333 | 60 60 . . 155 155 160 145 240 240 240 . 241 5 333 315 315 . 243 280 Shots Fired 963 | 20 12 . . 12 85 72 68 81 47 80 . 57 2 169 50 102 . 52 54 Gun 510 | 20 12 . . 12 80 50 52 45 30 59 . 45 . 47 . 8 . 32 18 Cannon 302 | . . . . . . 17 16 36 17 15 . 12 . 97 25 42 . 3 22 Launcher 12 | . . . . . 5 5 . . . . . . . . . 2 . . . Special 139 | . . . . . . . . . . 6 . . 2 25 25 50 . 17 14 Kinetic 145 | 10 6 . . . 6 . 12 27 . 11 . . . 19 . 8 . 32 14 Thermal 633 | . . . . 12 74 67 38 54 47 63 . 57 . 125 25 42 . 3 26 Explosive 7 | . . . . . 5 . . . . . . . . . . 2 . . . Electromagnetic 39 | 10 6 . . . . 5 18 . . . . . . . . . . . . Robot Hit Streak 22 | 6 4 . . 6 17 13 12 9 10 8 . 9 1 14 7 13 . 22 10 Robot Miss Streak 10 | 1 2 . . 3 5 6 5 4 3 3 . 10 1 5 3 4 . 3 3 Penetration Max 2 | . . . . . . . . 2 . . . . . . . . . 1 1 Secondary Targets 9 | . . . . . 1 3 3 . . 1 . 1 . . . . . . . Max Gunslinging Chain 1 | . . . . . 1 1 1 . . 1 . 1 . . . . . . . Shots Hit Robots 752 | 13 11 . . 21 64 57 77 55 37 57 . 39 1 114 31 105 . 35 35 Core Hits 372 | 7 5 . . 13 58 44 45 35 19 30 . 25 . 37 10 24 . 12 8 Critical Kills 7 | . . . . . . . . 3 . 1 . . . 3 . . . . . Critical Parts Destroyed 4 | . . . . . . . . 3 1 . . . . . . . . . . Critical Strikes 18 | . . . . 1 2 . 2 6 1 1 . . . 3 . 2 . . . Burn 2 | . . . . . 2 . . . . . . . . . . . . . . Meltdown 3 | . . . . . . . . . . . . . . 3 . . . . . Destroy 8 | . . . . . . . . 6 1 1 . . . . . . . . . Sever 5 | . . . . 1 . . 2 . . . . . . . . 2 . . . Melee Attacks 185 | . 8 . . 16 . 10 51 7 . . . . 4 29 . 50 . . 10 Impact 11 | . 8 . . 3 . . . . . . . . . . . . . . . Slashing 150 | . . . . 13 . 8 44 2 . . . . 4 29 . 50 . . . Piercing 10 | . . . . . . . . . . . . . . . . . . . 10 Sneak Attacks 17 | . 1 . . 2 . 3 7 3 . . . . . . . 1 . . . Combat Hostiles 2 | . . . . . . . . 1 . . . . . . . 1 . . . Follow-up Attacks . | . . . . . . . . . . . . . . . . . . . . Damage Inflicted 22596 | 212 289 . . 925 2212 2371 2095 1301 1012 1297 . 1093 . 3565 615 3786 . 814 1009 Guns 9052 | 172 92 . . 209 1388 960 973 848 727 1092 . 873 . 519 . 68 . 704 427 Cannons 6485 | . . . . . . 365 308 397 285 205 . 220 . 2298 615 1100 . 110 582 Explosions 2121 | 40 . . . . 824 918 140 . . . . . . . . 199 . . . Melee 4938 | . 197 . . 716 . 128 674 56 . . . . . 748 . 2419 . . . Ramming . | . . . . . . . . . . . . . . . . . . . . Kinetic 2285 | 65 30 . . . 95 . 260 461 . 145 . . . 125 . 68 . 704 332 Thermal 13718 | 40 . . . 209 1293 2042 899 784 1012 1152 . 1093 . 2692 615 1100 . 110 677 Explosive 1065 | . . . . . 824 42 . . . . . . . . . 199 . . . Electromagnetic 590 | 107 62 . . . . 159 262 . . . . . . . . . . . . Impact 197 | . 197 . . . . . . . . . . . . . . . . . . Slashing 4741 | . . . . 716 . 128 674 56 . . . . . 748 . 2419 . . . Piercing . | . . . . . . . . . . . . . . . . . . . . Highest Corruption 14 | . . . . . . 2 12 2 5 5 5 5 . . . 1 1 1 14 Average Corruption 3 | . . . . . . 1 9 1 4 5 5 5 . . . 1 1 1 4 Corruption Purged 5 | . . . . . . . . . . . . . . . . . . 1 4 Corruption Blocked . | . . . . . . . . . . . . . . . . . . . . Effects 161 | . . . . . . 9 44 9 17 24 5 34 . . . 13 . 3 3 Message Errors 39 | . . . . . . 3 13 3 2 8 2 3 . . . 2 . 1 2 Matter Fused 44 | . . . . . . 3 11 2 3 6 1 13 . . . 3 . 1 1 Heat Flow Errors 19 | . . . . . . . 6 1 3 2 . 5 . . . 2 . . . Energy Discharges 12 | . . . . . . 2 3 . . 2 . 3 . . . 2 . . . Parts Rejected 1 | . . . . . . . 1 . . . . . . . . . . . . Parts Fused 3 | . . . . . . . . . . . . 2 . . . . . 1 . Data Loss (minor) 25 | . . . . . . . 8 2 5 2 1 5 . . . 2 . . . Data Loss (major) 5 | . . . . . . 1 . 1 1 . . 1 . . . 1 . . . Misfires 7 | . . . . . . . 1 . 3 2 . . . . . 1 . . . Alerts 4 | . . . . . . . . . . 1 1 2 . . . . . . . Weapon Failures 2 | . . . . . . . 1 . . 1 . . . . . . . . . Overload Shots . | . . . . . . . . . . . . . . . . . . . . Overflow Damage 823 | . 39 . . 140 16 167 21 4 . . . . . 165 13 217 . . 41 Projectiles 146 | . . . . . . 4 21 4 . . . . . 38 13 25 . . 41 Explosions 179 | . . . . . 16 163 . . . . . . . . . . . . . Melee 498 | . 39 . . 140 . . . . . . . . . 127 . 192 . . . Knockbacks 2 | . . . . . . . . 2 . . . . . . . . . . . Impact . | . . . . . . . . . . . . . . . . . . . . Kinetic 2 | . . . . . . . . 2 . . . . . . . . . . . Secondary . | . . . . . . . . . . . . . . . . . . . . Self-Inflicted Damage 394 | 23 . . . . 96 275 . . . . . . . . . . . . . Shots 8 | 1 . . . . 2 5 . . . . . . . . . . . . . Rammed . | . . . . . . . . . . . . . . . . . . . . Targets Rammed . | . . . . . . . . . . . . . . . . . . . . Kicked . | . . . . . . . . . . . . . . . . . . . . Crushed . | . . . . . . . . . . . . . . . . . . . . Highest Temperature 936 | 20 . . . 192 344 365 323 399 331 472 . 127 . 250 152 248 . 123 936 Average Temperature 127 | 14 . . . 68 116 60 112 170 113 194 . 49 . 88 53 109 . 49 282 Received Heat Transfer 2532 | . . . . 120 369 47 762 180 121 267 . 91 . 149 . 210 . 75 141 Effects 32 | . . . . . 1 1 4 5 . 3 . . . . . . . . 18 Shutdowns 8 | . . . . . . 1 . 1 . . . . . . . . . . 6 Energy Bleed 1 | . . . . . . . . . . 1 . . . . . . . . . Interference 8 | . . . . . 1 . 4 3 . . . . . . . . . . . Matter Decay 3 | . . . . . . . . . . 1 . . . . . . . . 2 Short Circuit 2 | . . . . . . . . 1 . . . . . . . . . . 1 Damage (minor) 4 | . . . . . . . . . . 1 . . . . . . . . 3 Damage (major) 4 | . . . . . . . . . . . . . . . . . . . 4 Damage (core) 2 | . . . . . . . . . . . . . . . . . . . 2 Siege Activations . | . . . . . . . . . . . . . . . . . . . . Robots Corrupted 2 | . 2 . . . . . . . . . . . . . . . . . . Combat Hostiles . | . . . . . . . . . . . . . . . . . . . . Parts Fried 1 | . . . . . . 1 . . . . . . . . . . . . . Impact Corruptions 3 | . 3 . . . . . . . . . . . . . . . . . . Robots Melted 7 | . . . . . . . . . 1 1 . 1 . 4 . . . . . Combat Hostiles 7 | . . . . . . . . . 1 1 . 1 . 4 . . . . . Parts Melted 37 | . . . . 1 4 5 1 3 2 6 . . . 13 1 1 . . . Heat Transferred 20673 | 50 . . . 462 3025 2844 1520 1624 1731 1942 . 2083 . 2987 629 1036 . 111 629 Parts Sabotaged . | . . . . . . . . . . . . . . . . . . . . Parts Stolen . | . . . . . . . . . . . . . . . . . . . . Parts Stripped . | . . . . . . . . . . . . . . . . . . . . Power Chain Reactions 3 | 1 . . . . . 1 1 . . . . . . . . . . . . Alert | -11 -10 -10 -10 -9 -8 -7 -7 -6 -6 -6 -6 -5 -5 -5 -4 -4 -4 -4 -3 ------- Run | Yrd Mat Min Exi Min Mat Fac Gar Fac Low Low Zio Pro Fac Gar Fac Gar Fac DSF Res Peak Influence 3312 | 35 170 66 . 130 505 496 871 468 . . . . 356 1727 1081 3312 1743 1585 912 Initial 1738 | . 22 66 . . 1 210 271 457 . . . . 337 249 906 609 1738 1220 891 Average 802 | 12 82 66 . 47 300 331 506 308 . . . . 344 873 925 1819 1739 1406 788 Maximum Alert Level 5 | . . . . . 2 2 3 2 . . . . 1 5 3 5 5 4 3 Low Security (%) 13 | 100 100 100 . 100 27 12 . 1 . . . . . . . . . . . Level 1 18 | . . . . . 35 38 4 88 . . . . 100 6 . . . . . Level 2 22 | . . . . . 37 49 86 10 . . . . . 29 . 3 . . 5 Level 3 22 | . . . . . . . 8 . . . . . . 38 100 23 . . 94 Level 4 11 | . . . . . . . . . . . . . . 18 . 26 . 100 . Level 5 11 | . . . . . . . . . . . . . . 7 . 46 100 . . High Security . | . . . . . . . . . . . . . . . . . . . . Max Security . | . . . . . . . . . . . . . . . . . . . . Sterilizations 1 | . . . . . . . . . . . . . . . . . . 1 . Squads Dispatched 18 | . 3 . . . 1 6 . 2 . . . . . . 1 . . 2 3 Investigation 3 | . 1 . . . 1 1 . . . . . . . . . . . . . Extermination 6 | . . . . . . 3 . 2 . . . . . . . . . . 1 Reinforcement 6 | . 2 . . . . 2 . . . . . . . . . . . 2 . Assault 2 | . . . . . . . . . . . . . . . . . . . 2 Garrison 1 | . . . . . . . . . . . . . . . 1 . . . . Intercept . | . . . . . . . . . . . . . . . . . . . . Searches Triggered . | . . . . . . . . . . . . . . . . . . . . Construction Impeded 1 | . . . . . . 1 . . . . . . . . . . . . . Haulers Reinforced . | . . . . . . . . . . . . . . . . . . . . Active Scanning Responses . | . . . . . . . . . . . . . . . . . . . . Cargo Convoy Interrupts . | . . . . . . . . . . . . . . . . . . . . Stealth | -11 -10 -10 -10 -9 -8 -7 -7 -6 -6 -6 -6 -5 -5 -5 -4 -4 -4 -4 -3 --------- Run | Yrd Mat Min Exi Min Mat Fac Gar Fac Low Low Zio Pro Fac Gar Fac Gar Fac DSF Res Distress Signals 10 | . 2 . . . 3 . 2 . . . . . . . 2 1 . . . Communications Jammed 2 | . . . . . . . . . . . . . . . . . . . 2 Distress Signals 2 | . . . . . . . . . . . . . . . . . . . 2 Times Spotted 259 | . 6 . . 6 32 24 18 13 8 17 . 13 1 32 17 33 . 18 21 Peak Tracking Total 9 | . 3 . . 3 5 5 4 4 3 7 . 4 1 4 5 5 . 4 9 Tactical Retreats 8 | . . . . 1 1 . 2 1 . . . . . . 1 1 . 1 . Traps | -11 -10 -10 -10 -9 -8 -7 -7 -6 -6 -6 -6 -5 -5 -5 -4 -4 -4 -4 -3 ------- Run | Yrd Mat Min Exi Min Mat Fac Gar Fac Low Low Zio Pro Fac Gar Fac Gar Fac DSF Res Traps Triggered 25 | . 3 . . 1 . 5 3 . 1 . . . 1 . . 8 . 3 . Indirectly 1 | . . . . . . 1 . . . . . . . . . . . . . Trap Hack Attempts . | . . . . . . . . . . . . . . . . . . . . Triggered . | . . . . . . . . . . . . . . . . . . . . Disarmed . | . . . . . . . . . . . . . . . . . . . . Reprogrammed . | . . . . . . . . . . . . . . . . . . . . Reused . | . . . . . . . . . . . . . . . . . . . . Traps Extracted . | . . . . . . . . . . . . . . . . . . . . Installed . | . . . . . . . . . . . . . . . . . . . . Triggered 1 | . 1 . . . . . . . . . . . . . . . . . . Machines | -11 -10 -10 -10 -9 -8 -7 -7 -6 -6 -6 -6 -5 -5 -5 -4 -4 -4 -4 -3 ---------- Run | Yrd Mat Min Exi Min Mat Fac Gar Fac Low Low Zio Pro Fac Gar Fac Gar Fac DSF Res Machines Disabled 53 | . . . . . 3 20 2 2 . 1 . . . 11 . 14 . . . Max in Single Turn 8 | . . . . . 1 8 1 1 . 1 . . . 1 . 2 . . . Garrison Relay 14 | . . . . . . . 2 . . . . . . 5 . 7 . . . Phase Generator 1 | . . . . . . . . . . . . . . . . 1 . . . Machines Repaired . | . . . . . . . . . . . . . . . . . . . . Machines Dismantled . | . . . . . . . . . . . . . . . . . . . . Machines Sabotaged . | . . . . . . . . . . . . . . . . . . . . Overloaded Fab Kills . | . . . . . . . . . . . . . . . . . . . . Hacking | -11 -10 -10 -10 -9 -8 -7 -7 -6 -6 -6 -6 -5 -5 -5 -4 -4 -4 -4 -3 --------- Run | Yrd Mat Min Exi Min Mat Fac Gar Fac Low Low Zio Pro Fac Gar Fac Gar Fac DSF Res Machines Accessed 38 | . 2 . 1 1 9 6 2 7 1 . . . 2 2 1 1 1 . 2 Terminals 25 | . 2 . . . 5 4 2 5 . . . . 1 2 . 1 1 . 2 Fabricators 1 | . . . . . . . . 1 . . . . . . . . . . . Repair Stations 2 | . . . . . 1 . . 1 . . . . . . . . . . . Recycling Units 2 | . . . . . 2 . . . . . . . . . . . . . . Scanalyzers 2 | . . . . . 1 1 . . . . . . . . . . . . . Garrison Access 3 | . . . . . . 1 . . . . . . 1 . 1 . . . . Total Hacks 80 | . 4 . 1 1 28 11 2 19 1 . . . 3 2 2 1 2 . 3 Successful 47 | . 3 . 1 1 19 5 2 10 1 . . . 2 . 2 . 1 . . Failed 33 | . 1 . . . 9 6 . 9 . . . . 1 2 . 1 1 . 3 Catastrophic 11 | . . . . . 1 3 . 4 . . . . . 1 . . . . 2 Database Lockouts . | . . . . . . . . . . . . . . . . . . . . Manual 38 | . . . 1 . 12 6 . 13 . . . . 1 2 . 1 . . 2 Terminals 49 | . 4 . . . 15 6 2 13 . . . . 1 2 . 1 2 . 3 Fabricators 2 | . . . . . . . . 2 . . . . . . . . . . . Repair Stations 8 | . . . . . 4 . . 4 . . . . . . . . . . . Recycling Units 2 | . . . . . 2 . . . . . . . . . . . . . . Scanalyzers 10 | . . . . . 7 3 . . . . . . . . . . . . . Garrison Access 6 | . . . . . . 2 . . . . . . 2 . 2 . . . . Terminal Hacks 12 | . 3 . 1 1 1 . 2 2 1 . . . . . . . 1 . . Prototype ID Bank 1 | . 1 . . . . . . . . . . . . . . . . . . Open Door 3 | . . . . 1 . . 1 . 1 . . . . . . . . . . Open DSF 1 | . . . . . . . . . . . . . . . . . 1 . . Terminal Index 1 | . . . . . . . . 1 . . . . . . . . . . . Unreport Threat 1 | . . . . . . . . 1 . . . . . . . . . . . Transport Status 1 | . 1 . . . . . . . . . . . . . . . . . . Hauler Manifests 2 | . 1 . . . 1 . . . . . . . . . . . . . . Security Stations 1 | . . . . . . . 1 . . . . . . . . . . . . Derelict Proto ID Bank 1 | . . . 1 . . . . . . . . . . . . . . . . Fabricator Hacks 1 | . . . . . . . . 1 . . . . . . . . . . . Network Status 1 | . . . . . . . . 1 . . . . . . . . . . . Repair Station Hacks 7 | . . . . . 3 . . 4 . . . . . . . . . . . Scan Component 4 | . . . . . 2 . . 2 . . . . . . . . . . . Repair 3 | . . . . . 1 . . 2 . . . . . . . . . . . Recycling Unit Hacks 2 | . . . . . 2 . . . . . . . . . . . . . . Report Inventory 2 | . . . . . 2 . . . . . . . . . . . . . . Scanalyzer 10 | . . . . . 7 3 . . . . . . . . . . . . . Insert Component 5 | . . . . . 3 2 . . . . . . . . . . . . . Analyze 5 | . . . . . 4 1 . . . . . . . . . . . . . Garrison Access Hacks 5 | . . . . . . 1 . . . . . . 2 . 2 . . . . Unlock Access 3 | . . . . . . 1 . . . . . . 1 . 1 . . . . Coupler Status 2 | . . . . . . . . . . . . . 1 . 1 . . . . Unauthorized Hacks 8 | . . . . . 4 1 . 3 . . . . . . . . . . . Terminals 8 | . . . . . 4 1 . 3 . . . . . . . . . . . Botnet 8 | . . . . . 4 1 . 3 . . . . . . . . . . . Fabricators . | . . . . . . . . . . . . . . . . . . . . Repair Stations . | . . . . . . . . . . . . . . . . . . . . Recycling Units . | . . . . . . . . . . . . . . . . . . . . Scanalyzers . | . . . . . . . . . . . . . . . . . . . . Garrison Access . | . . . . . . . . . . . . . . . . . . . . Data Cores Recovered 1 | . . . . . . . . . . . . . . . 1 . . . . Used . | . . . . . . . . . . . . . . . . . . . . Hacking Detections 28 | . . . . . 7 6 1 5 . . . . 2 2 1 1 1 . 2 Full Trace Events 2 | . . . . . 1 1 . . . . . . . . . . . . . Feedback Events . | . . . . . . . . . . . . . . . . . . . . Feedback Blocked . | . . . . . . . . . . . . . . . . . . . . Robot Schematics Acquired . | . . . . . . . . . . . . . . . . . . . . Robots Built . | . . . . . . . . . . . . . . . . . . . . Authchips . | . . . . . . . . . . . . . . . . . . . . Time . | . . . . . . . . . . . . . . . . . . . . Total Robot Build Rating . | . . . . . . . . . . . . . . . . . . . . Part Schematics Acquired 3 | . . . . . 2 1 . . . . . . . . . . . . . Parts Built . | . . . . . . . . . . . . . . . . . . . . Authchips . | . . . . . . . . . . . . . . . . . . . . Time . | . . . . . . . . . . . . . . . . . . . . Total Part Build Rating . | . . . . . . . . . . . . . . . . . . . . Parts Repaired 3 | . . . . . 1 . . 2 . . . . . . . . . . . Time 158 | . . . . . 44 . . 114 . . . . . . . . . . . Parts Recycled . | . . . . . . . . . . . . . . . . . . . . Recycled Matter . | . . . . . . . . . . . . . . . . . . . . Retrieved Matter . | . . . . . . . . . . . . . . . . . . . . Retrieved Components . | . . . . . . . . . . . . . . . . . . . . Parts Scanalyzed 3 | . . . . . 2 1 . . . . . . . . . . . . . Part Schematics Acquired 3 | . . . . . 2 1 . . . . . . . . . . . . . Parts Damaged . | . . . . . . . . . . . . . . . . . . . . Bothacking | -11 -10 -10 -10 -9 -8 -7 -7 -6 -6 -6 -6 -5 -5 -5 -4 -4 -4 -4 -3 ------------ Run | Yrd Mat Min Exi Min Mat Fac Gar Fac Low Low Zio Pro Fac Gar Fac Gar Fac DSF Res Used RIF Installer 4 | . . . . . . . 2 . . . . . . 1 . 1 . . . Zone Cloak 1 | . . . . . . . 1 . . . . . . . . . . . . Watcher Feeds 1 | . . . . . . . . . . . . . . 1 . . . . . Autoassimilate 1 | . . . . . . . . . . . . . . . . 1 . . . Robots Hacked 54 | . . . . . . 2 . 4 . 3 . . 1 10 11 12 . 8 3 Non-combat 13 | . . . . . . 1 . 1 . . . . 1 . 6 . . 1 3 Combat 41 | . . . . . . 1 . 3 . 3 . . . 10 5 12 . 7 . Autoassimilated 2 | . . . . . . . . . . . . . . . . 2 . . . Robot Hacks Applied 57 | . . . . . . 2 . 4 . 3 . . 1 10 15 11 . 8 3 parse_system 4 | . . . . . . 1 . . . . . . . . 1 2 . . . no_distress 2 | . . . . . . 1 . . . . . . . . . . . 1 . generate_anomaly 1 | . . . . . . . . . . . . . . . . . . . 1 ignore_repairs 1 | . . . . . . . . . . . . . . . . . . . 1 ignore_parts 7 | . . . . . . . . 1 . . . . . . 6 . . . . map_route 1 | . . . . . . . . . . . . . . . 1 . . . . scatter_targeting 1 | . . . . . . . . 1 . . . . . . . . . . . disable_weapons 2 | . . . . . . . . . . . . . . . . 1 . 1 . reboot_system 3 | . . . . . . . . . . . . . . . . 2 . 1 . go_dormant 1 | . . . . . . . . . . . . . . . . . . 1 . overwrite_iff 10 | . . . . . . . . . . 2 . . . 3 3 1 . 1 . streamctrl_low 1 | . . . . . . . . . . . . . . . 1 . . . . formatsys_high 23 | . . . . . . . . 2 . 1 . . 1 7 3 5 . 3 1 Relay Couplers Released 56 | . . . . . . . 8 . . . . . . 21 . 27 . . . Machine Destruction 56 | . . . . . . . 8 . . . . . . 21 . 27 . . . Attached 24 | . . . . . . . 1 . . 2 . . 1 5 2 10 . 3 . Fabnet Peak Effective % . | . . . . . . . . . . . . . . . . . . . . Robots Rewired 21 | . . . . . . . 4 . . 2 . . . 4 . 11 . . . Allies Hacked 1 | . . . . . . . . . . . . . . . . . . . 1 Hacks Repelled . | . . . . . . . . . . . . . . . . . . . . Allies | -11 -10 -10 -10 -9 -8 -7 -7 -6 -6 -6 -6 -5 -5 -5 -4 -4 -4 -4 -3 -------- Run | Yrd Mat Min Exi Min Mat Fac Gar Fac Low Low Zio Pro Fac Gar Fac Gar Fac DSF Res Total Allies 60 | . . . . . . . 4 2 . 5 . . 4 14 7 19 . 4 1 Largest Group 11 | . . . . . . . 2 2 . 2 2 2 4 9 11 11 6 8 4 Highest-Rated Group 646 | . . . . . . . 70 76 . 60 60 60 103 262 315 646 300 474 266 Highest-Rated Ally 137 | . . . . . . . 39 47 . 32 30 30 31 116 56 109 56 137 137 Total Orders 45 | . . . . . . . . . . . . . . 13 5 14 2 . 11 STAY 21 | . . . . . . . . . . . . . . 5 3 6 1 . 6 ROAM 4 | . . . . . . . . . . . . . . 3 . 1 . . . FOLLOW 20 | . . . . . . . . . . . . . . 5 2 7 1 . 5 Ally Attacks 427 | . . . . . . . 26 13 . 4 . 31 . 79 71 126 . 53 24 Total Damage 13169 | . . . . . . . 332 304 . 141 . 914 . 1526 1195 5377 . 2221 1159 Kills 73 | . . . . . . . 3 1 . . . 8 . 8 8 28 . 12 5 Allies Corrupted 3 | . . . . . . . . . . 1 . 1 . . . 1 . . . Allies Melted 3 | . . . . . . . . . . . . . . . . 3 . . . Intel | -11 -10 -10 -10 -9 -8 -7 -7 -6 -6 -6 -6 -5 -5 -5 -4 -4 -4 -4 -3 ------- Run | Yrd Mat Min Exi Min Mat Fac Gar Fac Low Low Zio Pro Fac Gar Fac Gar Fac DSF Res Robot Analysis Total . | . . . . . . . . . . . . . . . . . . . . Derelict Logs Recovered 8 | . . 1 . 1 . . . . 1 2 . 3 . . . . . . . Drone Launches . | . . . . . . . . . . . . . . . . . . . . Drone Recoveries . | . . . . . . . . . . . . . . . . . . . . Exploration | -11 -10 -10 -10 -9 -8 -7 -7 -6 -6 -6 -6 -5 -5 -5 -4 -4 -4 -4 -3 ------------- Run | Yrd Mat Min Exi Min Mat Fac Gar Fac Low Low Zio Pro Fac Gar Fac Gar Fac DSF Res Turns Passed 18044 | 137 391 87 293 919 1057 1750 1246 1483 630 890 186 1134 256 2431 595 3161 46 381 971 Spaces Moved 12080 | 86 327 151 521 797 580 1111 615 843 458 542 98 695 187 1726 390 2185 33 189 546 Core 43 | 14 . . . . . . . . . . . . . 1 . 2 . . 26 Treads 730 | . . . . . . . 407 323 . . . . . . . . . . . Legs 4313 | 66 203 . . 355 580 739 51 520 458 542 98 695 6 . . . . . . Wheels 535 | 6 . . . . . 372 157 . . . . . . . . . . . . Hover 6459 | . 124 151 521 442 . . . . . . . . 181 1725 390 2183 33 189 520 Flight . | . . . . . . . . . . . . . . . . . . . . Fastest Speed 50 | 50 56 56 56 56 113 107 115 112 120 120 190 120 106 106 106 106 106 106 50 Average Speed 113 | 107 96 56 56 86 119 119 146 132 120 140 190 149 107 107 111 114 106 106 88 Slowest Speed 1300 | 120 190 56 56 190 190 360 189 260 120 190 190 260 210 1300 156 1300 106 156 210 Overloaded Moves . | . . . . . . . . . . . . . . . . . . . . Propulsion Burnouts . | . . . . . . . . . . . . . . . . . . . . Robots Hopped . | . . . . . . . . . . . . . . . . . . . . Cave-ins Triggered . | . . . . . . . . . . . . . . . . . . . . Exploration Rate (%) 46 | 4 54 37 92 93 37 27 46 11 67 65 10 76 4 97 13 99 1 91 13 Regions Visited 19 Branch Regions 7 Pre-discovered Areas . | . . . . . . . . . . . . . . . . . . . . Known Exits Taken 12 | . 1 1 1 1 . 1 . 1 1 1 . 1 1 . 1 . 1 . . Unknown Exits Taken 3 | 1 . . . . 1 . . . . . 1 . . . . . . . . Scrap Searched 10 | . . 1 . 3 . . . . 3 2 . 1 . . . . . . . Spaces Dug 22 | . . . . 2 . 6 4 1 . . . . 2 2 . 1 . . 4 Terrain Destroyed 377 | 3 . . . 2 72 104 9 4 4 13 . 1 2 10 4 137 . . 12 Melee 21 | . . . . 2 . 6 4 1 . . . . 2 1 . 1 . . 4 Projectile 52 | . . . . . . 1 . 3 4 13 . 1 . 9 4 9 . . 8 AOE 304 | 3 . . . . 72 97 5 . . . . . . . . 127 . . . Terrain Rammed . | . . . . . . . . . . . . . . . . . . . . Walls Destroyed . | . . . . . . . . . . . . . . . . . . . . Machines Disabled . | . . . . . . . . . . . . . . . . . . . . Actions | -11 -10 -10 -10 -9 -8 -7 -7 -6 -6 -6 -6 -5 -5 -5 -4 -4 -4 -4 -3 --------- Run | Yrd Mat Min Exi Min Mat Fac Gar Fac Low Low Zio Pro Fac Gar Fac Gar Fac DSF Res Total 15243 | 107 374 152 521 985 845 1433 816 1134 500 602 99 742 236 2130 519 2702 44 324 978 Wait 1556 | 2 3 1 . 126 160 181 56 164 17 6 . 4 26 171 65 198 12 27 337 Move 12062 | 85 326 150 520 796 579 1110 614 842 457 541 97 694 186 1725 390 2184 32 188 546 Hop . | . . . . . . . . . . . . . . . . . . . . Pick Up 144 | 2 11 1 1 9 15 10 8 21 3 3 1 6 2 19 5 17 . 3 7 Fast Attach 121 | 7 5 . . 4 9 12 9 13 . 2 . 3 2 15 3 22 . 7 8 Attach 82 | . 2 . . 6 7 13 4 6 2 1 . 5 3 9 8 10 . 2 4 Detach 34 | . . . . 2 4 7 2 . . 2 . 1 . 3 3 7 . . 3 Swap 224 | . 5 . . 4 15 29 21 19 5 16 . 8 4 31 3 39 . 6 19 Drop 194 | 1 8 . . 13 12 13 12 28 1 . 1 2 7 34 6 35 . 8 13 Fire 507 | 10 6 . . 9 44 40 39 32 15 31 . 19 2 89 34 73 . 33 31 Melee 185 | . 8 . . 16 . 10 51 7 . . . . 4 29 . 50 . . 10 Ram . | . . . . . . . . . . . . . . . . . . . . Kick . | . . . . . . . . . . . . . . . . . . . . Crush . | . . . . . . . . . . . . . . . . . . . . Escape Stasis 126 | . . . . . . 8 . . . . . . . 4 . 65 . 49 . Rewire 8 | . . . . . . . . 2 . . . . . 1 2 2 . 1 . Trap . | . . . . . . . . . . . . . . . . . . . . Miscellaneous . | . . . . . . . . . . . . . . . . . . . . Route ------- -11/Scrapyard -10/Materials (discovered 4 exits: *Mat x3 / *Min) -10/Mines (discovered 2 exits: *Mat / *Exi) -10/Exiles -9/Mines (discovered 2 exits: *Mat x2) -8/Materials -7/Factory -7/Garrison -6/Factory -6/Lower Caves -6/Lower Caves -6/Zion -5/Proximity Caves -5/Factory (discovered 5 exits: Fac x2 / Upp x2 / Gar) -5/Garrison (discovered 3 exits: *Fac x3) -4/Factory -4/Garrison (discovered 3 exits: *Fac x3) -4/Factory -4/DSF -3/Research (discovered 1 exit: [*Arm]) History --------- Turn | Location | Event 4 | -11/Scrapyard | Discovered new exit (range 15) 138 | -11/Scrapyard | Entered Materials 221 | -10/Materials | Discovered new exit (range 3) 227 | -10/Materials | Identified exit to Materials 304 | -10/Materials | Build established: Mutant 312 | -10/Materials | Discovered exit to Materials (range 16) 431 | -10/Materials | Discovered new exit (range 10) 438 | -10/Materials | Identified exit to Mines 458 | -10/Materials | Discovered exit to Materials (range 6) 529 | -10/Materials | Entered Mines 534 | -10/Mines | Discovered exit to Materials (range 15) 613 | -10/Mines | Deemed a non-threat by the Exiles lab entrance 613 | -10/Mines | Discovered new exit (range 5) 615 | -10/Mines | Identified exit to Exiles 616 | -10/Mines | Entered Exiles 632 | -10/Exiles | Met 8R-AWN 641 | -10/Exiles | Met EX-HEX 659 | -10/Exiles | Met EX-BIN 674 | -10/Exiles | Aligned with FarCom system 674 | -10/Exiles | Given EX-Vault access code 688 | -10/Exiles | Opened EX-Vault 689 | -10/Exiles | Build established: Scavenger-Mutant 690 | -10/Exiles | Found Cloak of Protection 702 | -10/Exiles | Warned to stay clear of 0b10 Research branches 717 | -10/Exiles | Met EX-DEC 748 | -10/Exiles | Visited The Gauntlet 900 | -10/Exiles | Discovered new exit (range 15) 908 | -10/Exiles | Identified exit to Mines 909 | -10/Exiles | Left Exiles lab with Cloak of Protection 909 | -10/Exiles | Entered Mines 1149 | -9/Mines | Learned Materials emergency access door positions 1194 | -9/Mines | Discovered new exit (range 10) 1198 | -9/Mines | Identified exit to Materials 1212 | -9/Mines | Discovered exit to Materials (range 11) 1223 | -9/Mines | Met a Derelict who couldn't figure out how to use a Trap Extractor 1353 | -9/Mines | Received a Rocket Launcher from a helpful Derelict 1421 | -9/Mines | Build established: Mutant 1828 | -9/Mines | Entered Materials 1828 | -8/Materials | Evolved 4 slots: Propulsion x1, Utility x3 1975 | -8/Materials | Destroyed 7 combat bots 2251 | -8/Materials | Discovered new exit (range 15) 2266 | -8/Materials | Build established: Scavenger-Mutant 2595 | -8/Materials | Build established: Mutant 2753 | -8/Materials | Repaired Gatling Laser 2885 | -8/Materials | Entered Factory 2885 | -7/Factory | Evolved 2 slots: Power x1, Propulsion x1 2965 | -7/Factory | Build established: Scavenger-Mutant 3762 | -7/Factory | Lost 3 parts (1p1n1u) 4382 | -7/Factory | Assembled infested ambush trap array 4475 | -7/Factory | Lost 5 parts (2n1u2w) 4626 | -7/Factory | Identified exit to Garrison 4635 | -7/Factory | Entered Garrison 4661 | -7/Garrison | Triggered checkpoint 4694 | -7/Garrison | Garrison Relay disabled 4745 | -7/Garrison | Installed Relay Interface Framework 4865 | -7/Garrison | Triggered checkpoint 4916 | -7/Garrison | System corruption reached 10% 5255 | -7/Garrison | Expanded RIF knowledge: Zone Cloak 5413 | -7/Garrison | Triggered checkpoint 5561 | -7/Garrison | Discovered new exit (range 10) 5614 | -7/Garrison | Core integrity fell below 50% 5733 | -7/Garrison | Triggered checkpoint 5802 | -7/Garrison | Garrison Relay disabled 5837 | -7/Garrison | Learned Factory security intel 5881 | -7/Garrison | Entered Factory 5881 | -6/Factory | Accompanied by 2 allies 5881 | -6/Factory | Evolved 2 slots: Utility x1, Weapon x1 6115 | -6/Factory | Repaired Corrupted Gatling Laser 6168 | -6/Factory | Repaired Broken VSS Leg 6240 | -6/Factory | Build established: Bothacker-Skirmisher 6569 | -6/Factory | Build established: Scavenger-Skirmisher 6870 | -6/Factory | Discovered new exit (range 15) 7363 | -6/Factory | Identified exit to Lower Caves 7364 | -6/Factory | Entered Lower Caves 7410 | -6/Lower Caves | Learned Factory terminal intel 7673 | -6/Lower Caves | Build established: Gunner 7817 | -6/Lower Caves | Found DCF Scrap (10 items) 7893 | -6/Lower Caves | Encountered a Warlord checkpoint 7894 | -6/Lower Caves | Discovered new exit (range 13) 7920 | -6/Lower Caves | Identified exit to Lower Caves 7994 | -6/Lower Caves | Entered another Lower Caves area 8422 | -6/Lower Caves | Attracted the attention of an 0b10 checkpoint 8466 | -6/Lower Caves | Build established: Scavenger-Tank 8500 | -6/Lower Caves | Attracted the attention of an 0b10 outpost 8709 | -6/Lower Caves | Discovered new exit (range 8) 8741 | -6/Lower Caves | Identified exit to Zion 8755 | -6/Lower Caves | Learned Factory garrison access intel 8884 | -6/Lower Caves | Entered Zion 8884 | -6/Zion | Accompanied by 2 allies 8960 | -6/Zion | Discovered new exit (range 12) 9070 | -6/Zion | Entered Proximity Caves 9070 | -5/Proximity Caves | Accompanied by 2 allies 9089 | -5/Proximity Caves | Identified exit to Factory 9159 | -5/Proximity Caves | Lost 3 parts (1n1u1w) 9276 | -5/Proximity Caves | Spotter reported a threat 9293 | -5/Proximity Caves | Spotter reported a threat 9411 | -5/Proximity Caves | Lost 3 parts (1p1n1u) 9495 | -5/Proximity Caves | Spotted B-75 Beast 9523 | -5/Proximity Caves | Destroyed B-75 Beast 9551 | -5/Proximity Caves | Learned Factory security intel 9873 | -5/Proximity Caves | Attracted the attention of an 0b10 checkpoint 10081 | -5/Proximity Caves | Learned 12 Factory zone layouts 10204 | -5/Proximity Caves | Entered Factory 10204 | -5/Factory | Evolved 2 slots: Utility x1, Weapon x1 10205 | -5/Factory | Identified exit to Upper Caves 10206 | -5/Factory | Identified exit to Factory 10208 | -5/Factory | Loaded intel: 27 terminal locations 10209 | -5/Factory | Loaded intel: 4 garrison access locations 10371 | -5/Factory | Allied Derelicts emerged from ambush trap array 10454 | -5/Factory | Identified exit to Garrison 10460 | -5/Factory | Entered Garrison 10460 | -5/Garrison | Accompanied by 4 allies 10594 | -5/Garrison | Triggered checkpoint 10682 | -5/Garrison | Garrison Relay disabled 10782 | -5/Garrison | Triggered checkpoint 10822 | -5/Garrison | Spotted B-90 Cyclops 10828 | -5/Garrison | Rewired B-86 Titan 10830 | -5/Garrison | Destroyed B-90 Cyclops 10962 | -5/Garrison | Spotted B-75 Beast 10978 | -5/Garrison | Destroyed B-75 Beast 11002 | -5/Garrison | Triggered checkpoint 11036 | -5/Garrison | Triggered checkpoint 11214 | -5/Garrison | Triggered checkpoint 11298 | -5/Garrison | Build established: Scavenger-Skirmisher 11305 | -5/Garrison | Discovered exit to Factory (range 15) 11450 | -5/Garrison | Spotted Executioner 11452 | -5/Garrison | Spotted Executioner 11496 | -5/Garrison | Garrison Relay disabled 12044 | -5/Garrison | Triggered checkpoint 12190 | -5/Garrison | Expanded RIF knowledge: Watcher Feeds 12198 | -5/Garrison | Discovered exit to Factory (range 10) 12259 | -5/Garrison | Triggered checkpoint 12303 | -5/Garrison | Garrison Relay disabled 12396 | -5/Garrison | Triggered checkpoint 12404 | -5/Garrison | Garrison Relay disabled 12426 | -5/Garrison | Discovered exit to Factory (range 11) 12449 | -5/Garrison | Triggered checkpoint 12512 | -5/Garrison | Triggered checkpoint 12538 | -5/Garrison | Garrison Relay disabled 12815 | -5/Garrison | Build established: Commander-Skirmisher 12891 | -5/Garrison | Entered Factory 12891 | -4/Factory | Accompanied by 9 allies 12891 | -4/Factory | Evolved 2 slots: Utility x2 13214 | -4/Factory | Lost 3 allies 13368 | -4/Factory | Garrison activated, responded to threat 13406 | -4/Factory | Lost 6 allies 13486 | -4/Factory | Identified exit to Garrison 13486 | -4/Factory | Entered Garrison 13486 | -4/Garrison | Accompanied by 2 allies 13518 | -4/Garrison | Triggered checkpoint 13555 | -4/Garrison | Garrison Relay disabled 13610 | -4/Garrison | Triggered checkpoint 13944 | -4/Garrison | Triggered checkpoint 14016 | -4/Garrison | Rewired Striker 14022 | -4/Garrison | Rewired Striker 14118 | -4/Garrison | Triggered checkpoint 14132 | -4/Garrison | Garrison Relay disabled 14354 | -4/Garrison | Phase Generator disabled 14548 | -4/Garrison | Spotted B-86 Titan 14562 | -4/Garrison | Allies destroyed B-86 Titan 14570 | -4/Garrison | Triggered checkpoint 14631 | -4/Garrison | Triggered checkpoint 14735 | -4/Garrison | Garrison Relay disabled 14786 | -4/Garrison | Discovered new exit (range 13) 14803 | -4/Garrison | Expanded RIF knowledge: Autoassimilate 14960 | -4/Garrison | Triggered checkpoint 15188 | -4/Garrison | Triggered checkpoint 15301 | -4/Garrison | Discovered new exit (range 12) 15304 | -4/Garrison | Triggered checkpoint 15338 | -4/Garrison | Triggered checkpoint 15375 | -4/Garrison | Lost 3 allies 15393 | -4/Garrison | Garrison Relay disabled 15508 | -4/Garrison | Spotted B-90 Cyclops 15509 | -4/Garrison | Spotted B-86 Titan 15522 | -4/Garrison | Rewired B-75 Beast 15550 | -4/Garrison | Triggered checkpoint 15619 | -4/Garrison | Allies destroyed B-86 Titan 15626 | -4/Garrison | Allies destroyed B-90 Cyclops 15655 | -4/Garrison | Lost 6 allies 15764 | -4/Garrison | Heavy support dispatched to Factory 15879 | -4/Garrison | Garrison Relay disabled 15902 | -4/Garrison | Build established: Bothacker-Skirmisher 16024 | -4/Garrison | Garrison Relay disabled 16028 | -4/Garrison | Triggered checkpoint 16129 | -4/Garrison | Triggered checkpoint 16208 | -4/Garrison | Discovered new exit (range 14) 16330 | -4/Garrison | Build established: Bothacker-Tank 16647 | -4/Garrison | Entered Factory 16647 | -4/Factory | Accompanied by 6 allies 16682 | -4/Factory | Identified exit to DSF 16693 | -4/Factory | Entered DSF 16693 | -4/DSF | Accompanied by 6 allies 16744 | -4/DSF | Additional patrols routed to DSF 16886 | -4/DSF | Lost 3 allies 17026 | -4/DSF | Sterilization system engaged 17041 | -4/DSF | Discovered new exit (range 14) 17046 | -4/DSF | Ambient heat levels rising (+10) 17052 | -4/DSF | Lost 3 allies 17061 | -4/DSF | Ambient heat levels rising (+10) 17074 | -4/DSF | Entered Research 17074 | -3/Research | Accompanied by 3 allies 17074 | -3/Research | Evolved 2 slots: Propulsion x2 17271 | -3/Research | Build established: Bothacker-Skirmisher 17335 | -3/Research | Discovered new exit (range 34) 17387 | -3/Research | Found Prototype Processor 17395 | -3/Research | Identified Spectral Analyzer 17417 | -3/Research | Found Prototype Device 17417 | -3/Research | Identified Exp. Focal Shield 17472 | -3/Research | Found Fusion Bomb Launcher 17824 | -3/Research | First assault squad dispatched 18017 | -3/Research | P-80 Master assimilated allied Administrator 8a 18020 | -3/Research | P-80 Master assimilated allied Marshal 7a 18030 | -3/Research | Released all parts (16) 18031 | -3/Research | System corruption reached 10% 18033 | -3/Research | Core integrity fell below 50% 18041 | -3/Research | Core integrity fell below 20% 18045 | -3/Research | Destroyed by G-73 Enforcer with Phase Gun Last Messages --------------- 18030_ Released Lrg. Storage Unit. 18030_ Fusion Bomb Launcher crushed and broken. 18030_ Released Relay Coupler [Grunt]. 18030_ Released Relay Coupler [Specialist]. 18030_ Released Adv. Targeting Computer. 18030_ Released Broken Gravmag Array. 18030_ Broken Gravmag Array crushed and broken. 18030_ Released Relay Coupler [NC]. 18030_ Released Matter Neutralizer. 18030_ Matter Neutralizer crushed and broken. 18030_ Released Relay Coupler [Hunter]. 18030_ Released Gravmag Array. 18030_ Gravmag Array crushed and broken. 18031_ Acquired 7 matter. 18032_ Knocked back. 18036_ E-15 Imp destroyed. 18037_ P-80 Master resets Marshal 7a, system corruption cleaned. 18043_ Penetrated by Slug. 18043_ Acquired Mic. Antimatter Reactor. 18043_ U-05 Engineer builds a Wall. Map ----- +----------------------------------------------------+ | ??????????????# ???# """" + | | ??????????????# ## """" # | | ??????????????+ + """" # !! ^ #+## | | ??????????????######### """" # !! # | | ??????????????????????# ]## # | | ??????????????????????# ## # | | ??????????????????????######/##### # | | ????????????????############ ##### # " | | ????????????????# ##/##### + " | | ????????????????# # # #### | | ????????????????# # # #??# | | ????????????????# # ]+ #??#### | | ????????????????# #= # #??# | | ????????????????# +[ [[# #??# | | ????????????????# # [######### #??# | | ????????????????# #########??????# #??# | | ??????###############+##########T ######## #### | | ??????# ^ # | | ??????# = ^^ # | | ??????# l!% ^ + | | ??????+ !%[m ^^ # | | ??????# #################g#############+##+#= | | ??????# #?????????????#pgpp*[ #??# # | | ####### ###############!%!%][ #??# # | | ^^ #[[![=** #??#"" # | | ^^ @ ![g!! #??#"" # | | ^ #u%H*!/ #??#"Y # | | ^ #u=[!! %!#??#"" #### | | # ######+############ #]!! #??#"" #??? | | #?????? ??????????# # ! #??# =#??? | | ??????? ??????????# # u #??# #??? | | ??????"""" ?????????# ##########??#####+####??? | | ??????"T"" ????????? #??###??????????# #?????? | | ????? ???????## #???????????????# #?????? | | ????? ????????# #???????????????# #?????? | | ???? ???????# #???????????????# #?????? | | ???? """"""???????# #?????????????###+####??? | | ??? """""" ??????# #????########## #??? | | ??? """""" ??????# ????? # #??? | | ??# ?????? ?????# ?????? # #??? | | ??? ??????? ?????# ?????? # #??? | | ?????##???????##????? ??????? # #??? | | ????????????????????? ######??????# # #??? | | ????????????????????? ????????????# # #??? | | ????????????????????? ????????????# # #??? | | ????????????????????? ????????????# # #??? | | ????????????????????? ????????????# # #??? | | ????????????????????? ????????????# + = #??? | | ????????????????????? ????????????+ # +??? | | ????????????????????? ????????????# # * #??? | +----------------------------------------------------+ Best States ------------- Heat Dissipation 81 Energy Generation 41 Energy Capacity 730 Matter Stores 300 Matter Capacity 300 Sight Range 16 Terrain Scan Range 14 Terrain Scan Density 10 ECM Strength 1 Jamming Range 12 Cloak Strength 5 Additional Mass Support 12 Base Temperature (-) 100 Armor Coverage 225 Weapon Shielding 66 Phase Shifting 15 Evasion (%) 63 Targeting Accuracy 8 Target Analysis 5 Recoil Reduction 4 Particle Charging 20 Offensive Hacking 10 Relay Coupler Types 5 Relay Coupler Value 98 Item Schematics ----------------- Beam Rifle | -8/Materials | Scanalyzed VSS Leg | -8/Materials | Scanalyzed Arm. Huge Wheel | -7/Factory | Scanalyzed Robot Schematics ------------------ None Fabricated ------------ Nothing Alien Tech Used ----------------- None Achievements -------------- Dangerous Findings Knowing Is Half The Battle Challenges ------------ None Game ------ Seed SapperPotentialDoublenader Manual? 0 Play Time 07:00:36 Cumulative 108.4 hours Start 2024.10.27 @ 15:21:11 End 2024.11.02 @ 15:54:08 Sessions 3 Manual Loads 0 Difficulty Rogue Special Mode None Game No. 34 Rogue 34 Adventurer 0 Explorer 0 Win Type - Total 0 Types 0/0/0/0/0/0/0/0/0 Lore% 17 Gallery% 41 Achievement% 36 Wizard Run 0 Options --------- Layout 0 ASCII 0 Keyboard 0 Movement Mouse Keybinds 0 Fullscreen 1 Font 36/Smallcaps Map View 76x50 Zoom Use 0% Tactical HUD 1 Map Filters NONE Filters NONE Steam X RUN: 078d6860-b62a-4d8d-869e-0fbb3788e46e